{"text_format":"1","workbook":"xlsx","n_sheets":4,"sheets":["أسماء الخزائن بالشركة","مراقبة حركات عهدة الموظفين","طباعة السند","طباعة القيد"],"not_rendered":{"charts":0,"images":0,"macros":1,"external_links":0,"defined_names":3,"comments":0,"pivot_tables":0},"unopened":[],"bounds":{"document_bytes":16777216,"sheet_cells":100000,"rows_first":2000,"rows_last":500,"rows_between":2000,"halvings":0,"cell_chars":16384,"cell_head_chars":4096},"cells_cut":0,"cells_raw":0,"read":"whole","date_system":"1900"}

{"sheet":"أسماء الخزائن بالشركة","index":0,"n_rows":3,"n_cols":1,"rows_kept":3,"cut":false,"hidden":false,"merged":[]}
["أسماء الخزائن بالشركة"]
["خزينة الاداره"]
["عهدة وليد"]

{"sheet":"مراقبة حركات عهدة الموظفين","index":1,"n_rows":15,"n_cols":8,"rows_kept":15,"cut":false,"hidden":false,"merged":[[0,1,0,7]]}
[null,"شيت مراقبة حركات  العهدة بين وليد وخزانة الشركة"]
["&","تاريخ السند","نوع السند","رقم السند","اسم الخزينة ","اسم المستلم / المستفيد","وصف السند","المبلغ"]
[{"$f":"IFERROR(IF(OR($C3=\"قبض نقدى\",$C3=\"رصيد افتتاحى مدين\"),$H3,-1*$H3),\"\")","v":24000},"2019-01-01","رصيد افتتاحى مدين",{"$f":"IF(OR(C3=\"\",C3 = \"رصيد افتتاحى مدين\"),\"\",IF(C3=\"قبض نقدى\",COUNTIF(INDIRECT(ADDRESS(3,3)&\":\"&ADDRESS(ROW(),3)),$C3)+1000,COUNTIF(INDIRECT(ADDRESS(3,3)&\":\"&ADDRESS(ROW(),3)),$C3)+100))","v":""},"خزينة الاداره","وليد","رصيد افتتاحى",24000]
[20000,"2019-01-01","رصيد افتتاحى مدين","","خزينة حسام خطاب","خزينة حسام خطاب","رصيد افتتاحى",20000]
[-2768.75,"2019-01-02","صرف نقدى",101,"عهدة وليد","خزينة الادارة","ميكانيك شوفان رقم 22",2768.75]
[-1461.75,"2019-03-01","صرف نقدى",102,"عهدة وليد","خزينة الادارة","ميكانيك قهوة رقم 23",1461.75]
[2000,"2019-03-01","قبض نقدى",1001,"خزينة حسام خطاب","خزينة الادارة","استلام مبلغ 2000 جنية من التحويلات",2000]
[{"$f":"IFERROR(IF(OR($C8=\"قبض نقدى\",$C8=\"رصيد افتتاحى مدين\"),$H8,-1*$H8),\"\")","v":-8323.7199999999993},"2019-03-16","صرف نقدى",{"$f":"IF(OR(C8=\"\",C8 = \"رصيد افتتاحى مدين\"),\"\",IF(C8=\"قبض نقدى\",COUNTIF(INDIRECT(ADDRESS(3,3)&\":\"&ADDRESS(ROW(),3)),$C8)+1000,COUNTIF(INDIRECT(ADDRESS(3,3)&\":\"&ADDRESS(ROW(),3)),$C8)+100))","v":103},"عهدة وليد","خزينة الادارة","كيبل كهرباء القهوة رقم 24",8323.7199999999993]
[-8849.6,"2019-03-16","صرف نقدى",104,"عهدة وليد","خزينة الادارة","مصاريف متفرقه رقم 25",8849.6]
[-4448.18,"2019-03-16","صرف نقدى",105,"عهدة وليد","خزينة الادارة","مواد كهرباء لمصنع الشوفان رقم 26",4448.18]
[-8741.1,"2019-03-16","صرف نقدى",106,"عهدة وليد","خزينة الادارة","  تنزيل قطع صوامع الشوفان والعلف رقم 27",8741.1]
[-3984.86,"2019-03-16","صرف نقدى",107,"عهدة وليد","خزينة الادارة","مصاريف فرش سكن عمال مصنع القهوة رقم 28",3984.86]
[-2446,"2019-03-16","صرف نقدى",108,"عهدة وليد","خزينة الادارة","مصنع الشوفان خصم -كال -الصغير 29",2446]
[0,null,null,""]
[null,null,"عدد الحركات",{"$f":"SUBTOTAL(103,'مراقبة حركات عهدة الموظفين'!$D$3:$D$14)","v":10},null,"الإجمالي",{"$f":"IF(H15<0,\"مبلغ مستحق لوليد عند خزنة الشركة\",\"مبلغ مستحق للشركة عند وليد\")","v":"مبلغ مستحق لوليد عند خزنة الشركة"},{"$f":"SUBTOTAL(109,'مراقبة حركات عهدة الموظفين'!$A$3:$A$14)","v":-17023.96}]

{"sheet":"طباعة السند","index":2,"n_rows":42,"n_cols":6,"rows_kept":42,"cut":false,"hidden":false,"merged":[[0,0,1,1],[8,2,8,5],[3,0,3,1],[4,1,4,2],[6,1,6,3],[7,1,7,5],[9,1,9,5],[10,0,10,5],[16,0,16,1],[19,1,19,4],[20,1,20,2],[20,3,20,5],[34,2,34,5],[35,1,35,5],[36,0,36,5],[21,2,21,5],[22,1,22,5],[23,0,23,5],[29,0,29,1],[32,1,32,4],[33,1,33,2],[33,3,33,5]]}
["أختر نوع السند ورقم السند \nمن هنا ",null,"نوع السند","رقم السند"]
[null,null,"قبض نقدى",1001]
[]
["شركة الصقر للبرمجيات",null,null,null,"تاريخ الطباعه :",{"$f":"NOW()","v":"2019-03-17T15:07:06.610"}]
[null,{"$f":"\"سند\" & \" \" &C2&\" \" & \"رقم\"","v":"سند قبض نقدى رقم"},null,{"$f":"D2","v":1001}]
[null,null,null,null,"تاريخ السند :",{"$f":"IFERROR(DGET(alsqr,2,C1:D2),\"\")","v":"2019-03-01"}]
["استلمت أنا / نحن :",{"$f":"IFERROR(IF(C2=\"قبض نقدى\",A4 & \" / \" &DGET(alsqr,5,$C$1:$D$2),DGET(alsqr,6,$C$1:$D$2)),\"\")","v":"شركة الصقر للبرمجيات / خزينة حسام خطاب"}]
["من السيد / الساده :",{"$f":"IFERROR(IF(C2=\"قبض نقدى\",DGET(alsqr,6,$C$1:$D$2),A4 & \" / \" &DGET(alsqr,5,$C$1:$D$2)),\"\")","v":"خزينة الادارة"}]
["مبلغ وقدره :",{"$f":"IFERROR(DGET(alsqr,8,$C$1:$D$2),\"\")","v":2000},{"$f":" IFERROR(\"فقط\" & \"  \" & Ar_WriteDownNumber(B9,\"جنية\",\"قرش\") & \" \" & \"لاغير\",\"\")","v":"فقط  ����� جنية لاغير"}]
["وذلك قيمة :",{"$f":"IFERROR(DGET(alsqr,7,$C$1:$D$2),\"\")","v":"استلام مبلغ 2000 جنية من التحويلات"}]
[]
[null,null,null,null,"اسم المستلم /"]
[null,null,null,null,"التوقيع /"]
["امين الصندوق","المحاسب",null,"المراجعه","المدير المالى","اعتماد"]
[]
[null,null,null,null,null,"أصل"]
[{"$f":"A4","v":"شركة الصقر للبرمجيات"},null,null,null,"تاريخ الطباعه :",{"$f":"NOW()","v":"2019-03-17T15:07:06.610"}]
[null,null,{"$f":"B5","v":"سند قبض نقدى رقم"},{"$f":"D5","v":1001}]
[null,null,null,null,"تاريخ السند :",{"$f":"F6","v":"2019-03-01"}]
["استلمت أنا / نحن :",{"$f":"B7","v":"شركة الصقر للبرمجيات / خزينة حسام خطاب"}]
["من السيد / الساده :",{"$f":"B8","v":"خزينة الادارة"}]
["مبلغ وقدره :",{"$f":"B9","v":2000},{"$f":"C9","v":"فقط  ����� جنية لاغير"}]
["وذلك قيمة :",{"$f":"B10","v":"استلام مبلغ 2000 جنية من التحويلات"}]
[]
[null,null,null,null,"اسم المستلم /"]
[null,null,null,null,"التوقيع /"]
["امين الصندوق","المحاسب",null,"المراجعه","المدير المالى","اعتماد"]
[]
[null,null,null,null,null,"صوره 1"]
[{"$f":"A4","v":"شركة الصقر للبرمجيات"},null,null,null,"تاريخ الطباعه :",{"$f":"NOW()","v":"2019-03-17T15:07:06.610"}]
[null,null,{"$f":"B5","v":"سند قبض نقدى رقم"},{"$f":"D5","v":1001}]
[null,null,null,null,"تاريخ السند :",{"$f":"F6","v":"2019-03-01"}]
["استلمت أنا / نحن :",{"$f":"B7","v":"شركة الصقر للبرمجيات / خزينة حسام خطاب"}]
["من السيد / الساده :",{"$f":"B8","v":"خزينة الادارة"}]
["مبلغ وقدره :",{"$f":"B9","v":2000},{"$f":"C9","v":"فقط  ����� جنية لاغير"}]
["وذلك قيمة :",{"$f":"B10","v":"استلام مبلغ 2000 جنية من التحويلات"}]
[]
[null,null,null,null,"اسم المستلم /"]
[null,null,null,null,"التوقيع /"]
["امين الصندوق","المحاسب",null,"المراجعه","المدير المالى","اعتماد"]
[]
[null,null,null,null,null,"صوره 2"]

{"sheet":"طباعة القيد","index":3,"n_rows":12,"n_cols":4,"rows_kept":12,"cut":false,"hidden":false,"merged":[[3,0,3,3]]}
[null,"نوع السند","رقم السند"]
[null,"قبض نقدى"]
[]
[{"$f":"'طباعة السند'!A4","v":"شركة الصقر للبرمجيات"}]
["رقم القيد :",{"$f":"C2","v":0},"نوع القيد:",{"$f":"B2","v":"قبض نقدى"}]
["التاريخ :",{"$f":"IFERROR(DGET(alsqr,2,B1:C2),\"\")","v":"2019-03-01"}]
["اسم الحساب","وصف القيد","مدين","دائن"]
[{"$f":"IFERROR(IF($B$2=\"قبض نقدى\",DGET(alsqr,5,$C$1:$D$2),DGET(alsqr,6,$C$1:$D$2)),\"\")","v":""},{"$f":"IFERROR(DGET(alsqr,7,B1:C2),\"\")","v":"استلام مبلغ 2000 جنية من التحويلات"},{"$f":"IFERROR(DGET(alsqr,8,B1:C2),\"\")","v":2000},0]
[{"$f":"IFERROR(IF($B$2=\"قبض نقدى\",DGET(alsqr,6,$C$1:$D$2),DGET(alsqr,5,$C$1:$D$2)),\"\")","v":""},{"$f":"IFERROR(DGET(alsqr,7,B1:C2),\"\")","v":"استلام مبلغ 2000 جنية من التحويلات"},0,{"$f":"IFERROR(DGET(alsqr,8,B1:C2),\"\")","v":2000}]
[null,"الاجمالى",{"$f":"SUM(C8:C9)","v":2000},{"$f":"SUM(D8:D9)","v":2000}]
[]
["امين الصندوق","المحاسب                             المراجعه","المدير المالى","المدير العام"]